bitfinex-derivatives/quotes_SOLF0:USTF0_20260126
["timestamp","ask_amount","ask_price","bid_price","bid_amount"]
[1769408168745,0.05553511,122.21,122.17,3.31785517]
[1769408169541,0.05553511,122.21,122.13,114.7833]
[1769408169542,3.38075764,122.21,122.13,3.31785517]
[1769408169744,3.38075764,122.21,122.14,3.31785517]
[1769408169745,6.05660227,122.2,122.14,3.31785517]
[1769408170045,3.32522253,122.2,122.15,3.31785517]
[1769408170244,3.32522253,122.22,122.16,3.31785517]
[1769408170948,3.32522253,122.22,122.18,0.05549312]
[1769408175055,2.73137974,122.23,122.18,3.37334829]
[1769408176256,6.05660227,122.24,122.18,3.37334829]
[1769408177359,3.32522253,122.24,122.18,3.37334829]
[1769408178854,6.05660227,122.24,122.18,3.37334829]
[1769408192061,222.85231466,122.25,122.18,6.10472803]
[1769408192255,215.48011466,122.25,122.19,6.05785609]
[1769408192454,215.48011466,122.25,122.2,3.32647635]
[1769408192655,3.29809984,122.26,122.2,3.32647635]
[1769408192862,3.29809984,122.26,122.21,3.32647635]
[1769408193162,3.29809984,122.26,122.22,0.05712737]
[1769408193351,2.73137974,122.28,122.22,3.48970835]
[1769408193551,6.15115592,122.28,122.22,3.48970835]
[1769408194962,3.41977618,122.27,122.22,3.48970835]
[1769408195364,6.15115592,122.29,122.23,3.43258098]
[1769408195561,227.26415382,122.31,122.26,3.43258098]
[1769408195562,223.31533,122.31,122.26,3.43258098]
[1769408196065,6.15115592,122.29,122.23,3.43258098]
[1769408196666,0.06185407,122.27,122.23,3.43258098]
[1769408198369,0.06185407,122.27,122.23,6.16396072]
[1769408198773,0.06185407,122.27,122.24,3.43258098]
[1769408199268,442.41533,122.31,122.24,6.16396072]
[1769408199568,442.41533,122.31,122.25,3.43258098]
[1769408200271,445.14670974,122.31,122.25,3.43258098]
[1769408200662,445.14670974,122.31,122.27,0.05682758]
[1769408201568,445.14197101,122.31,122.27,0.05682758]
[1769408205178,2.72664101,122.3,122.27,0.05682758]
[1769408205376,2.72664101,122.3,122.25,3.43258098]
[1769408205676,2.78197527,122.3,122.25,3.43258098]
[1769408206066,6.20175145,122.3,122.25,3.43258098]
[1769408209069,3.41977618,122.29,122.21,3.43258098]
[1769408209272,0.05533426,122.3,122.25,3.43258098]
[1769408209673,6.14641719,122.31,122.25,3.43258098]
[1769408209976,0.05220319,122.29,122.25,3.43258098]
[1769408210280,3.41977618,122.31,122.26,3.43258098]
[1769408210474,3.41977618,122.31,122.26,3.48443744]
[1769408210674,3.41977618,122.31,122.26,0.05185646]
[1769408210877,6.14641719,122.31,122.26,0.05185646]
[1769408211183,3.41977618,122.31,122.26,0.05185646]
[1769408211383,3.41977618,122.31,122.26,3.48443744]
[1769408213683,6.14641719,122.31,122.26,3.48443744]
[1769408214183,2.72664101,122.3,122.26,3.48443744]
[1769408217684,6.14641719,122.31,122.26,3.48443744]
[1769408220589,7.3679,122.32,122.22,114.7]
[1769408220590,6.14641719,122.28,122.22,10.80578098]
[1769408221182,2.72664101,122.27,122.22,10.80578098]
[1769408221383,2.72664101,122.27,122.22,3.43258098]
[1769408221586,2.72664101,122.26,122.22,3.43258098]
[1769408221785,6.14641719,122.27,122.22,3.43258098]
[1769408221986,0.05540642,122.26,122.22,3.43258098]
[1769408224386,2.72664101,122.28,122.22,3.43258098]
[1769408224588,7.3686,122.31,122.24,3.31031932]
[1769408224589,3.52300092,122.31,122.24,3.31031932]
[1769408224894,2.72664101,122.32,122.26,3.31031932]
[1769408225590,6.24964193,122.32,122.26,3.31031932]
[1769408226090,6.24964193,122.32,122.28,0.05871971]
[1769408228193,2.72664101,122.31,122.26,3.31031932]
[1769408228388,2.78303077,122.31,122.26,3.31031932]
[1769408229088,2.78303077,122.31,122.26,10.68131932]
[1769408229293,0.05638976,122.31,122.26,10.68131932]
[1769408231094,2.78303077,122.31,122.26,10.68131932]
[1769408231290,2.78303077,122.31,122.27,3.31031932]
[1769408231495,2.72664101,122.35,122.28,3.31031932]
[1769408231792,2.72664101,122.35,122.29,3.31031932]
[1769408231984,6.24964193,122.36,122.29,3.31031932]
[1769408232693,6.24964193,122.36,122.3,3.31031932]
[1769408232886,6.24964193,122.36,122.31,0.05516138]
[1769408233086,2.72664101,122.35,122.31,0.05516138]
[1769408238896,5.96557061,122.35,122.31,0.05516138]
[1769408239190,5.96557061,122.34,122.31,0.05516138]
[1769408239389,5.96557061,122.33,122.28,3.55056266]
[1769408244904,2.72664101,122.32,122.28,3.55056266]
[1769408245700,5.96557061,122.32,122.26,10.92156266]
[1769408245899,2.77974856,122.31,122.26,10.92156266]
[1769408246100,6.01867816,122.31,122.26,3.55056266]
[1769408246405,2.72664101,122.3,122.26,3.55056266]
[1769408247803,6.01867816,122.31,122.26,3.55056266]
[1769408249008,5.96557061,122.3,122.24,3.55056266]
[1769408249207,2.72664101,122.29,122.24,3.55056266]
[1769408249408,5.96557061,122.29,122.24,3.55056266]
[1769408249708,5.96557061,122.28,122.23,326.4]
[1769408249909,6.02382565,122.28,122.23,326.4]
[1769408250109,6.02382565,122.28,122.23,329.95056266]
[1769408250812,2.78489605,122.28,122.24,3.55056266]
[1769408251202,0.05825504,122.28,122.24,3.55056266]
[1769408255916,2.78489605,122.28,122.24,3.55056266]
[1769408259824,114.5921,122.34,122.27,3.39576698]
[1769408259825,3.54550091,122.34,122.27,3.39576698]
[1769408260123,2.72664101,122.33,122.27,3.39576698]
[1769408260522,3.54550091,122.34,122.28,3.39576698]
[1769408260523,6.27214192,122.34,122.28,3.39576698]
[1769408260716,3.54550091,122.34,122.29,3.39576698]
[1769408260912,2.72664101,122.35,122.29,3.39576698]
[1769408261120,6.27214192,122.36,122.29,3.39576698]
[1769408261325,6.27214192,122.36,122.3,3.45624037]
[1769408261722,3.54550091,122.36,122.31,3.39576698]
[1769408262226,2.72664101,122.37,122.31,3.39576698]
[1769408262422,3.54550091,122.4,122.34,3.39576698]
[1769408262723,6.27214192,122.41,122.35,3.39576698]
[1769408262923,2.72664101,122.4,122.35,3.39576698]
[1769408263125,2.72664101,122.4,122.36,0.05203091]
[1769408263725,2.72256905,122.4,122.36,0.05203091]
[1769408264229,3.54550091,122.41,122.36,0.05203091]
[1769408270932,3.54550091,122.4,122.36,0.05203091]
[1769408276037,3.54550091,122.4,122.36,2.77459996]
[1769408279436,3.54550091,122.4,122.36,0.05203091]
[1769408281042,3.54550091,122.4,122.36,2.77459996]
[1769408288046,3.54550091,122.4,122.36,0.05203091]
[1769408314083,3.54550091,122.4,122.36,3.38182205]
[1769408314681,3.54550091,122.4,122.36,0.05203091]
[1769408316584,3.35279621,122.42,122.36,3.38182205]
[1769408316982,3.35279621,122.42,122.36,3.32979114]
[1769408317582,3.35279621,122.42,122.38,0.06095085]
[1769408333190,7.3619,122.42,122.38,0.06095085]
[1769408333396,3.41356732,122.41,122.35,6.05139178]
[1769408340692,3.35279621,122.4,122.34,2.72160064]
[1769408340892,3.35279621,122.4,122.34,6.05139178]
[1769408341596,0.05729157,122.38,122.35,3.32979114]
[1769408342000,0.05729157,122.38,122.34,2.72160064]
[1769408342300,0.05729157,122.38,122.33,6.05139178]
[1769408342799,0.05729157,122.38,122.34,3.32979114]
[1769408343500,3.43531754,122.38,122.33,2.72160064]
[1769408343699,3.43531754,122.38,122.33,6.17255235]
[1769408344000,3.43531754,122.38,122.34,3.45095171]
[1769408344206,0.05729157,122.38,122.34,3.45095171]
[1769408353012,0.05729157,122.38,122.34,6.17255235]
[1769408353815,0.05729157,122.38,122.35,3.45095171]
[1769408355514,10.73982597,122.42,122.36,3.45095171]
[1769408356010,3.37802597,122.41,122.36,3.45095171]
[1769408356315,2.72160064,122.43,122.38,3.45095171]
[1769408356316,3.37802597,122.43,122.38,3.45095171]
[1769408357111,7.3612,122.43,122.38,3.45095171]
[1769408357317,7.3612,122.43,122.37,0.05873687]
[1769408357318,3.25997255,122.42,122.37,0.05873687]
[1769408359015,3.25997255,122.41,122.37,0.05873687]
[1769408359211,5.98157319,122.41,122.37,0.05873687]
[1769408359515,3.25997255,122.4,122.37,0.05873687]
[1769408360119,13.34237319,122.44,122.37,3.48183849]
[1769408360511,5.98157319,122.44,122.37,3.48183849]
[1769408360713,3.25997255,122.44,122.39,3.42310162]
[1769408361726,3.25997255,122.44,122.4,0.06168283]
[1769408368523,5.98157319,122.44,122.4,0.06168283]
[1769408372328,5.98157319,122.42,122.37,3.42310162]
[1769408374423,0.06115973,122.43,122.35,10.08700064]
[1769408374424,6.22856062,122.4,122.35,3.30901122]
[1769408375421,0.05388677,122.39,122.35,3.30901122]
[1769408376434,0.05388677,122.39,122.36,3.30901122]
[1769408376734,2.72160064,122.41,122.36,3.36590255]
[1769408376933,6.22856062,122.42,122.36,3.36590255]
[1769408380540,2.72160064,122.41,122.36,3.36590255]
[1769408382742,6.22856062,122.41,122.36,3.36590255]
[1769408383641,3.50695998,122.41,122.36,3.36590255]
[1769408384944,13.58976062,122.43,122.36,3.36590255]
[1769408385343,3.50695998,122.42,122.36,3.36590255]
[1769408386047,6.22845972,122.41,122.36,3.36590255]
[1769408398657,3.50695998,122.41,122.36,3.36590255]
[1769408402260,3.50695998,122.41,122.37,3.30901122]
[1769408407259,3.4947155,122.43,122.37,3.30901122]
[1769408407562,6.21621524,122.43,122.37,3.30901122]
[1769408408063,2.72149974,122.42,122.37,3.30901122]
[1769408408264,2.72149974,122.42,122.39,0.06065979]
[1769408408464,6.21621524,122.43,122.39,0.06065979]
[1769408410966,3.4947155,122.42,122.39,0.06065979]
[1769408417578,3.33575935,122.41,122.35,10.62738118]
[1769408418265,3.33575935,122.41,122.36,3.26168118]
[1769408418872,6.05725909,122.41,122.36,3.26168118]
[1769408419175,0.05631448,122.4,122.36,3.26168118]
[1769408423379,3.33575935,122.43,122.37,3.26168118]
[1769408423681,3.33575935,122.43,122.37,3.31505185]
[1769408426083,3.33575935,122.43,122.37,6.03655159]
[1769408429177,3.33575935,122.43,122.37,3.31505185]
[1769408429583,3.33575935,122.43,122.37,6.03655159]
[1769408431084,3.33575935,122.43,122.37,3.31505185]
[1769408431286,3.33575935,122.42,122.37,3.31505185]
[1769408438998,5.95550098,122.46,122.39,3.52233207]
[1769408439189,3.23400124,122.45,122.39,3.52233207]
[1769408439887,3.23400124,122.45,122.41,0.06227321]
[1769408441696,5.95550098,122.45,122.41,0.06227321]
[1769408442996,3.23400124,122.44,122.41,0.06227321]
[1769408444506,3.23400124,122.43,122.41,0.00545547]
[1769408462823,3.23400124,122.42,122.35,3.52233207]
[1769408463024,3.23400124,122.4,122.35,3.52233207]
[1769408463225,3.23400124,122.4,122.36,3.48050917]
[1769408464429,0.05542284,122.39,122.36,3.48050917]
[1769408474638,3.39379238,122.41,122.36,3.48050917]
[1769408475839,6.11469014,122.43,122.36,3.48050917]
[1769408476041,6.11469014,122.43,122.35,10.08659776]
[1769408476042,6.11469014,122.43,122.37,3.53991179]
[1769408477244,3.45302541,122.42,122.37,3.53991179]
[1769408478749,3.45302541,122.44,122.38,3.26854323]
[1769408479851,3.45302541,122.44,122.4,0.05867846]
[1769408481045,6.17392317,122.44,122.4,0.05867846]
[1769408481447,3.45302541,122.43,122.4,0.05867846]
[1769408482141,6.17392317,122.43,122.4,0.05867846]
[1769408482645,3.45302541,122.42,122.4,0.00325562]
[1769408482839,6.17392317,122.42,122.4,0.00325562]
[1769408483037,3.45302541,122.41,122.36,3.26854323]
[1769408484450,0.05485001,122.4,122.36,3.26854323]
[1769408492357,3.45302541,122.44,122.38,3.26854323]
[1769408492558,6.17392317,122.41,122.36,3.26854323]
[1769408497061,6.29204937,122.39,122.34,321.96742096]
[1769408497860,3.57115161,122.38,122.32,3.30397709]
[1769408498061,2.72089776,122.37,122.32,3.30397709]
[1769408498260,6.29204937,122.37,122.32,3.30397709]
[1769408504167,6.29204937,122.38,122.32,3.30397709]
[1769408505773,3.57115161,122.38,122.32,3.30397709]
[1769408510875,6.2947117,122.38,122.32,3.30397709]
[1769408511881,3.57115161,122.38,122.32,3.30397709]
[1769408515477,3.57115161,122.38,122.33,3.30397709]
[1769408516975,13.6577117,122.4,122.34,3.30397709]
[1769408517580,3.57115161,122.39,122.34,3.30397709]
[1769408524177,3.57115161,122.39,122.32,7.3675]
[1769408524178,3.29556762,122.41,122.36,3.44011475]
[1769408524382,3.29556762,122.41,122.36,6.16367484]
[1769408529084,3.29556762,122.4,122.34,6.16367484]
[1769408534381,3.29556762,122.4,122.35,3.44011475]
[1769408536092,6.01912771,122.4,122.35,3.44011475]
[1769408537692,3.29556762,122.4,122.35,3.44011475]
[1769408538091,3.39499987,122.42,122.37,3.28088027]
[1769408539093,3.39499987,122.42,122.37,6.00444036]
[1769408539491,3.39499987,122.42,122.38,3.3380812]
[1769408539984,3.39499987,122.44,122.38,6.06164129]
[1769408541994,3.39499987,122.44,122.39,3.28088027]
[1769408542193,3.39499987,122.44,122.4,3.28088027]
[1769408543098,3.39499987,122.44,122.41,0.06155738]
[1769408544595,3.39499987,122.46,122.41,0.06155738]
[1769408547498,3.39499987,122.46,122.41,3.34243765]
[1769408547797,3.39499987,122.48,122.42,6.00444036]
[1769408548799,3.39499987,122.48,122.44,0.05233953]
[1769408551999,6.11855996,122.48,122.44,0.05233953]
[1769408552396,3.39499987,122.48,122.44,0.05233953]
[1769408553902,6.15230125,122.47,122.44,0.05233953]
[1769408555703,3.42874116,122.47,122.44,0.05233953]
[1769408556201,3.42874116,122.46,122.4,3.33235507]
[1769408556402,6.15230125,122.46,122.4,3.33235507]
[1769408557207,3.42874116,122.46,122.4,3.33235507]
[1769408557504,3.42874116,122.44,122.38,3.33235507]
[1769408557699,6.21048818,122.44,122.38,3.33235507]
[1769408558296,6.15230125,122.43,122.38,3.33235507]
[1769408558707,6.15230125,122.42,122.37,316.26149581]
[1769408559009,3.42874116,122.4,122.37,316.26149581]
[1769408559705,3.48524528,122.4,122.37,316.26149581]
[1769408559907,3.48524528,122.4,122.35,10.69785507]
[1769408560107,0.05650412,122.4,122.35,10.69785507]
[1769408560411,0.05650412,122.4,122.36,3.33235507]
[1769408561107,10.78944116,122.44,122.36,3.33235507]
[1769408561314,6.15230125,122.44,122.38,3.33235507]
[1769408561510,2.72356009,122.42,122.38,3.33235507]
[1769408562204,6.15230125,122.43,122.38,3.33235507]
[1769408562604,6.15230125,122.43,122.39,0.05321537]
[1769408565610,253.52874116,122.46,122.39,3.38557044]
[1769408565811,2.72356009,122.45,122.39,3.38557044]
[1769408566015,6.15230125,122.45,122.39,3.38557044]
[1769408566812,3.42874116,122.44,122.39,3.38557044]
[1769408572622,6.149176,122.44,122.39,3.38557044]
[1769408574125,3.42874116,122.44,122.39,3.38557044]
[1769408578224,0.06263043,122.43,122.39,3.38557044]
[1769408580526,3.49137159,122.43,122.39,0.05321537]
[1769408582924,6.21180643,122.43,122.39,0.05321537]
[1769408584029,3.55710583,122.42,122.39,0.05321537]
[1769408585030,6.27754067,122.41,122.36,3.58044574]
[1769408586524,0.06055114,122.4,122.36,3.58044574]
[1769408588736,0.06055114,122.4,122.34,6.30088058]
[1769408589336,0.06055114,122.4,122.35,3.58044574]
[1769408594242,6.27754067,122.46,122.4,3.58044574]
[1769408595436,6.27754067,122.46,122.42,0.06008201]
[1769408597146,3.3193959,122.45,122.42,0.06008201]
[1769408598246,6.03983074,122.47,122.42,0.06008201]
[1769408598549,3.3193959,122.47,122.42,6.23796708]
[1769408600647,3.3193959,122.47,122.42,3.51753224]
[1769408608557,6.03983074,122.49,122.43,3.45745023]
[1769408608758,3.3193959,122.49,122.43,3.45745023]
[1769408609460,3.3193959,122.49,122.45,0.06212234]
[1769408609760,6.03983074,122.49,122.45,0.06212234]
[1769408609960,3.3193959,122.48,122.45,0.06212234]
[1769408621259,3.24739,122.46,122.41,3.55665476]
[1769408621463,5.96782484,122.46,122.41,3.55665476]
[1769408621669,3.24739,122.46,122.41,3.55665476]
[1769408622672,0.06006848,122.45,122.41,3.55665476]
[1769408625070,0.06006848,122.45,122.41,6.2770896]
[1769408628280,3.30745848,122.45,122.4,3.55665476]
[1769408629182,3.24739,122.44,122.38,314.41269521]
[1769408629376,3.24739,122.44,122.39,3.55665476]
[1769408630079,0.06211024,122.43,122.39,3.55665476]
[1769408634688,5.96783872,122.46,122.39,3.55665476]
[1769408634885,5.96783872,122.46,122.4,3.61069375]
[1769408636991,3.24739,122.46,122.4,3.61069375]
[1769408637187,5.96783872,122.46,122.4,3.61069375]
[1769408639687,3.24739,122.46,122.4,3.61069375]
[1769408641696,3.24739,122.48,122.42,3.55665476]
[1769408641894,3.24739,122.48,122.43,3.55665476]
[1769408642588,2.72044872,122.49,122.44,3.61579322]
[1769408642788,5.96783872,122.5,122.44,3.61579322]
[1769408645994,3.29163415,122.49,122.44,3.61579322]
[1769408651199,3.29163415,122.48,122.44,0.05913846]
[1769408654696,3.29163415,122.48,122.44,3.58320115]
[1769408655700,6.01208287,122.5,122.44,3.58320115]
[1769408663902,3.29163415,122.5,122.44,3.58320115]
[1769408664101,6.01208287,122.5,122.44,3.58320115]
[1769408664304,6.01208287,122.5,122.45,3.46713493]
[1769408664602,3.29163415,122.5,122.45,3.46713493]
[1769408671803,5.95538391,122.49,122.44,0.05913846]
[1769408672007,3.23493519,122.48,122.44,0.05913846]
[1769408672508,3.23493519,122.48,122.43,3.46713493]
[1769408672709,3.23493519,122.48,122.45,0.0540464]
[1769408673808,5.95538391,122.48,122.45,0.0540464]
[1769408674000,3.23493519,122.48,122.45,0.0540464]
[1769408679220,5.95538391,122.48,122.45,0.0540464]
[1769408679418,3.27141445,122.46,122.4,311.06793512]
[1769408679619,5.99186317,122.46,122.41,3.33693768]
[1769408680222,3.27141445,122.46,122.41,3.33693768]
[1769408680727,0.06027175,122.45,122.41,3.33693768]
[1769408681521,3.27141445,122.48,122.42,3.33693768]
[1769408681723,5.99186317,122.48,122.42,3.39762505]
[1769408683929,5.99186317,122.47,122.42,3.39762505]
[1769408687828,3.27141445,122.46,122.42,3.39762505]
[1769408688230,3.27141445,122.44,122.4,300.36859744]
[1769408688629,3.27141445,122.44,122.4,303.70553512]
[1769408688831,2.77246919,122.45,122.4,303.70553512]
[1769408689031,0.05202047,122.45,122.4,311.06823512]
[1769408692429,5.99126654,122.48,122.42,3.33693768]
[1769408694334,5.99126654,122.48,122.44,0.05190403]
[1769408695238,3.27141445,122.47,122.44,0.05190403]
[1769408695637,2.71985209,122.45,122.4,303.70553512]
[1769408697042,0.05181028,122.44,122.4,303.70553512]
[1769408701235,3.27141445,122.43,122.38,3.33693768]
[1769408701437,5.99126654,122.43,122.38,3.33693768]
[1769408701635,2.71985209,122.42,122.38,3.33693768]
[1769408701834,0.05181028,122.44,122.34,114.5841]
[1769408701835,5.99126654,122.4,122.34,3.33693768]
[1769408702036,5.99126654,122.4,122.34,329.37693768]
[1769408702234,5.99126654,122.4,122.35,3.33693768]
[1769408702648,0.05989343,122.38,122.35,3.33693768]
[1769408702942,5.99126654,122.4,122.36,0.06079536]
[1769408704644,3.27141445,122.4,122.36,0.06079536]
[1769408709245,2.71985209,122.42,122.36,6.23958166]
[1769408709246,3.35461093,122.42,122.36,6.23958166]
[1769408711847,3.35461093,122.42,122.36,3.51972957]
[1769408712148,3.35461093,122.42,122.36,10.88482957]
[1769408713253,3.35461093,122.44,122.38,3.45893421]
[1769408713451,6.07446302,122.44,122.38,3.45893421]
[1769408714153,6.07446302,122.44,122.4,0.05477507]
[1769408714451,3.35461093,122.44,122.4,0.05477507]
[1769408715750,6.07446302,122.44,122.4,0.05477507]
[1769408718457,3.35461093,122.44,122.4,0.05477507]
[1769408734174,3.35461093,122.44,122.4,3.29420526]
[1769408734381,3.27430873,122.46,122.41,2.71985209]
[1769408735282,3.27430873,122.46,122.42,0.06236759]
[1769408751595,10.63370873,122.46,122.42,0.06236759]
[1769408751789,3.27430873,122.45,122.42,0.06236759]
[1769408752493,3.27430873,122.45,122.38,5.95922558]
[1769408752796,3.33693078,122.45,122.39,3.23943019]
[1769408753590,3.27430873,122.44,122.37,13.32342558]
[1769408754094,3.27430873,122.43,122.37,3.23943019]
[1769408754494,0.05737954,122.42,122.37,3.23943019]
[1769408754995,0.05737954,122.42,122.37,5.95922558]
[1769408755499,0.05737954,122.42,122.38,3.23943019]
[1769408756496,0.05737954,122.42,122.38,5.95922558]
[1769408759400,5.99410412,122.45,122.39,3.23943019]
[1769408759603,3.27430873,122.53,122.45,3.23943019]
[1769408759804,9.79010472,122.53,122.47,5.95922558]
[1769408760103,3.27430873,122.53,122.49,2.71979539]
[1769408760903,3.27430873,122.53,122.5,2.71979539]
[1769408761105,6.51371125,122.56,122.5,2.77499022]
[1769408761303,3.27430873,122.55,122.5,2.77499022]
[1769408763207,3.27430873,122.55,122.5,6.04478353]
[1769408765002,318.9504,122.59,122.53,3.26979331]
[1769408765211,3.46587891,122.63,122.57,2.71979539]
[1769408765806,3.46587891,122.63,122.54,270.88]
[1769408766104,3.46587891,122.63,122.58,2.71979539]
[1769408766412,3.46587891,122.63,122.56,114.3824]
[1769408766712,3.46587891,122.63,122.57,0.05229872]
[1769408766900,3.46587891,122.63,122.57,2.77209411]
[1769408768199,3.46587891,122.63,122.52,333.2955]
[1769408768200,4.85308785,122.61,122.52,333.2955]
[1769408768407,4.90757214,122.61,122.54,2.71979539]
[1769408768603,4.90757214,122.61,122.55,2.71979539]
[1769408768812,4.85308785,122.61,122.54,2.71979539]
[1769408769111,4.85308785,122.61,122.55,2.71979539]
[1769408769609,0.05919978,122.59,122.56,2.71979539]
[1769408770400,0.05919978,122.59,122.53,7.3544]
[1769408770608,0.05919978,122.59,122.54,2.71979539]
[1769408770804,0.05919978,122.59,122.51,7.3561]
[1769408771005,4.85308785,122.58,122.52,2.71979539]
[1769408771205,4.85308785,122.58,122.51,10.07589539]
[1769408771508,4.85308785,122.58,122.52,2.71979539]
[1769408771711,0.05858795,122.56,122.52,2.71979539]
[1769408771911,0.05858795,122.56,122.5,328.57979539]
[1769408772815,7.63147119,122.56,122.49,10.07699539]
[1769408773016,4.85308785,122.54,122.47,7.3584]
[1769408773213,4.85308785,122.54,122.47,335.91819539]
[1769408773408,7.57288324,122.54,122.47,335.91819539]
[1769408773709,7.57288324,122.53,122.45,10.07949539]
[1769408773908,7.57288324,122.52,122.44,2.71979539]
[1769408774108,4.85308785,122.51,122.44,2.71979539]
[1769408774310,7.57288324,122.51,122.43,335.92069539]
[1769408774513,2.71979539,122.5,122.43,335.92069539]
[1769408774714,7.57288324,122.51,122.43,335.92069539]
[1769408774910,0.05213764,122.48,122.43,335.92069539]
[1769408775113,4.85308785,122.51,122.44,2.71979539]
[1769408775309,4.85308785,122.51,122.45,2.77377935]
[1769408777713,4.85308785,122.49,122.45,0.05398396]
[1769408778221,4.85308785,122.49,122.42,2.71979539]
[1769408778421,7.57288324,122.48,122.41,333.2222]
[1769408778616,7.57288324,122.48,122.41,325.86]
[1769408778824,7.57288324,122.48,122.4,328.57979539]
[1769408779215,2.71979539,122.47,122.4,328.57979539]
[1769408779616,7.57288324,122.48,122.4,328.57979539]
[1769408779818,4.85308785,122.48,122.42,2.71979539]
[1769408780121,2.71979539,122.5,122.42,2.77843343]
[1769408780320,4.85308785,122.5,122.43,2.71979539]
[1769408780724,4.85308785,122.5,122.44,2.71979539]
[1769408780918,4.85308785,122.5,122.43,2.71979539]
[1769408782024,4.85308785,122.5,122.45,0.05620078]
[1769408782926,4.85308785,122.53,122.45,2.77599617]
[1769408783521,4.85308785,122.53,122.45,2.71979539]
[1769408784525,4.85308785,122.53,122.48,0.05551187]
[1769408800946,12.20848785,122.53,122.45,10.07939539]
[1769408801146,4.82533191,122.51,122.45,10.07939539]
[1769408801347,4.82533191,122.51,122.47,2.71979539]
[1769408802144,4.82533191,122.51,122.45,2.71979539]
[1769408802343,4.82533191,122.51,122.44,2.71979539]
[1769408802541,3.46543422,122.49,122.44,2.71979539]
[1769408803246,3.46543422,122.49,122.45,2.71979539]
[1769408804238,0.05577373,122.48,122.45,2.71979539]
[1769408806249,3.46543422,122.51,122.47,2.71979539]
[1769408806952,3.46543422,122.53,122.48,2.71979539]
[1769408809256,3.46543422,122.53,122.49,0.05390885]
[1769408811458,3.43847979,122.51,122.46,2.71979539]
[1769408812054,3.43847979,122.51,122.45,2.71979539]
[1769408812954,0.06139662,122.49,122.45,2.71979539]
[1769408813561,0.06139662,122.49,122.45,2.71767758]
[1769408814654,2.7790742,122.49,122.41,3.02078779]
[1769408814860,3.43847979,122.48,122.41,3.02078779]
[1769408815660,0.05995967,122.46,122.41,3.02078779]
[1769408817964,0.05995967,122.46,122.42,0.30311021]
[1769408820560,0.05995967,122.46,122.43,3.02078779]
[1769408820765,3.43847979,122.5,122.45,2.71767758]
[1769408821771,3.43847979,122.5,122.45,3.02078779]
[1769408822163,3.43847979,122.5,122.46,0.05262505]
[1769408822762,3.43847979,122.52,122.47,2.71767758]
[1769408826472,3.43847979,122.54,122.49,2.71767758]
[1769408827468,3.43847979,122.54,122.5,0.05504581]
[1769408827970,3.43847979,122.54,122.5,2.77272339]
[1769408829973,3.43847979,122.56,122.51,3.01803436]
[1769408831673,3.43847979,122.56,122.51,2.71767758]
[1769408833268,3.43847979,122.55,122.5,2.77272339]
[1769408833473,3.43847979,122.55,122.5,0.05504581]
[1769408835376,3.43847979,122.57,122.5,3.07308017]
[1769408835576,3.43847979,122.57,122.51,2.71767758]
[1769408836078,3.43847979,122.57,122.5,3.01803436]
[1769408836271,3.43847979,122.57,122.53,0.05500365]
[1769408838182,3.46138404,122.59,122.53,3.07261961]
[1769408838376,3.46138404,122.59,122.53,0.35494203]
[1769408839278,3.46138404,122.58,122.53,0.05500365]
[1769408841081,3.46138404,122.58,122.51,3.01761596]
[1769408841082,3.46138404,122.57,122.5,2.71767758]
[1769408841281,6.17906162,122.56,122.49,0.29993838]
[1769408841483,3.46138404,122.55,122.49,0.29993838]
[1769408842685,0.05172166,122.53,122.49,0.29993838]
[1769408843978,0.05172166,122.53,122.48,2.71767758]
[1769408844181,0.05172166,122.53,122.48,3.01761596]
[1769408844487,0.05172166,122.53,122.49,0.29993838]
[1769408845084,0.05172166,122.53,122.47,3.01761596]
[1769408845283,6.17906162,122.51,122.45,0.29993838]
[1769408845483,6.17906162,122.5,122.45,0.29993838]
[1769408845683,6.17906162,122.49,122.43,0.29993838]
[1769408845885,6.17906162,122.48,122.41,0.29993838]
[1769408846084,0.0527504,122.49,122.43,3.01761596]
[1769408846484,2.71767758,122.51,122.45,0.29993838]
[1769408847178,3.46138404,122.52,122.45,0.29993838]
[1769408847385,7.3552,122.53,122.47,0.36222664]
[1769408847386,3.46138404,122.53,122.47,0.36222664]
[1769408847890,6.17906162,122.53,122.47,0.36222664]
[1769408848289,3.46138404,122.53,122.47,0.36222664]
[1769408848494,2.71767758,122.54,122.48,0.29993838]
[1769408849491,2.71767758,122.54,122.5,0.06161056]
[1769408850091,6.17906162,122.55,122.5,0.06161056]
[1769408851088,3.46138404,122.52,122.46,0.29993838]
[1769408851294,6.17906162,122.52,122.46,0.29993838]
[1769408852300,2.71767758,122.53,122.47,0.36154894]
[1769408852500,3.46138404,122.54,122.48,0.36154894]
[1769408853096,3.46138404,122.54,122.49,0.05735115]
[1769408859398,2.71767758,122.55,122.49,0.41822431]
[1769408859599,3.40767451,122.55,122.49,0.41822431]
[1769408860804,6.12535209,122.55,122.49,0.41822431]
[1769408863607,3.40767451,122.55,122.49,0.41822431]
[1769408867118,2.71767758,122.56,122.49,0.41822431]
[1769408867119,3.40767451,122.56,122.5,3.07855074]
[1769408868012,3.40767451,122.56,122.52,0.05423876]
[1769408871415,3.40767451,122.58,122.52,0.41511192]
[1769408871615,3.40767451,122.57,122.52,0.05423876]
[1769408871916,6.12535209,122.57,122.52,0.05423876]